[Event "French-ch Youth U12 2022"]
[Site "Agen"]
[Date "2022.04.19"]
[Round "4.5"]
[White "Castagnerol, Cerise"]
[Black "Neel, Laura"]
[Result "1-0"]
[ECO "E62"]
[WhiteElo "1312"]
[BlackElo "1725"]
[Annotator "NA RC"]
[PlyCount "83"]
[EventDate "2022.04.17"]
[EventType "swiss"]
[EventCountry "FRA"]
[SourceTitle "playchess.com"]
[Source "ChessBase"]
[SourceQuality "1"]
[TimeControl "5400+30"]

1. d4 {[%emt 0:00:05]} Nf6 {[%emt 0:00:02]} 2. Nf3 {[%emt 0:00:19]} g6 {[%emt 0:00:05]} 3. g3 {[%emt 0:00:05]} Bg7 {[%emt 0:00:04]} 4. Bg2 {[%emt 0:00:06]} O-O 5. O-O {[%emt 0:00:07]} d6 {[%emt 0:00:44]} 6. c4 {[%emt 0:00:11]} c6 {[%emt 0:00:03]} 7. Nc3 {[%emt 0:00:49]} Bf5 {[%emt 0:00:21]} 8. Re1 {[%emt 0:01:05]} Ne4 {[%emt 0:00:08]} 9. Nh4 {[%emt 0:01:25]} Nxc3 {[%emt 0:00:27]} 10. bxc3 {[%emt 0:00:10]} Bd7 {[%emt 0:00:41]} 11. Ba3 {[%emt 0:04:58]} Na6 {[%emt 0:03:37]} 12. Rb1 {[%emt 0:08:38]} Rb8 {[%emt 0:00:26]} 13. Rb3 {[%emt 0:00:20]} Nc7 {[%emt 0:15:53]} 14. c5 {[%emt 0:04:23]} d5 {[%emt 0:00:15]} 15. Bb4 {[%emt 0:03:44]} Qc8 {[%emt 0:02:50]} 16. a4 {[%emt 0:03:36]} Bf6 {[%emt 0:04:40]} 17. Nf3 {[%emt 0:01:28]} h5 {[%emt 0:12:29]} 18. e4 {[%emt 0:03:14]} dxe4 {[%emt 0:03:10]} 19. Rxe4 {[%emt 0:00:09]} Be6 20. Rb2 {[%emt 0:02:38]} Bg4 {[%emt 0:05:18]} 21. Qe1 {[%emt 0:05:49]} Bf5 {[%emt 0:01:38]} 22. Ree2 {[%emt 0:02:17]} Kg7 {[%emt 0:11:20]} 23. Ne5 {[%emt 0:02:03]} Rh8 {[%emt 0:00:40]} 24. Nf3 {[%emt 0:14:03]} Bg4 {[%emt 0:03:20]} 25. Rec2 {[%emt 0:01:13]} Bxf3 {[%emt 0:14:02]} 26. Bxf3 {[%emt 0:00:08]} h4 {[%emt 0:00:21]} 27. Qe2 {[%emt 0:01:02]} Qe8 {[%emt 0:02:17]} 28. Ba5 {[%emt 0:02:20]} Ne6 {[%emt 0:00:21]} 29. Bg4 {[%emt 0:00:50]} Ng5 {[%emt 0:00:26]} 30. f4 {[%emt 0:00:34]} hxg3 {[%emt 0:04:48]} 31. hxg3 {[%emt 0:06:51]} Ne6 {[%emt 0:02:21]} 32. Bxe6 {[%emt 0:00:56]} fxe6 {[%emt 0:00:06]} 33. Qxe6 {[%emt 0:02:04]} g5 {[%emt 0:02:57]} 34. fxg5 {[%emt 0:01:00]} Bxg5 {[%emt 0:00:10]} 35. Bc7 {[%emt 0:00:19]} Qh5 {[%emt 0:02:49]} 36. Be5+ {[%emt 0:10:39]} Bf6 {[%emt 0:00:36]} 37. Qxe7+ {[%emt 0:00:14]} Kg8 {[%emt 0:03:40]} 38. Qe6+ {[%emt 0:00:01]} Kh7 {[%emt 0:03:13]} 39. Rh2 {[%emt 0:00:28]} Qxh2+ 40. Rxh2+ {[%emt 0:00:12]} Kg7 {[%emt 0:03:37]} 41. Qxf6+ {[%emt 0:00:08]} Kg8 {[%emt 0:00:22]} 42. Rxh8# 1-0

[Event "French-ch Youth U12 2022"]
[Site "Agen"]
[Date "2022.04.19"]
[Round "4.8"]
[White "Maret, Anna"]
[Black "Bernard, Ines"]
[Result "1-0"]
[ECO "C01"]
[WhiteElo "1328"]
[BlackElo "1430"]
[Annotator "NA RC"]
[PlyCount "115"]
[EventDate "2022.04.17"]
[EventType "swiss"]
[EventCountry "FRA"]
[SourceTitle "playchess.com"]
[Source "ChessBase"]
[SourceQuality "1"]
[TimeControl "5400+30"]

1. e4 {[%emt 0:00:02]} e6 {[%emt 0:00:00]} 2. d4 {[%emt 0:01:53]} d5 3. exd5 {[%emt 0:00:09]} exd5 {[%emt 0:00:30]} 4. Nf3 {[%emt 0:00:07]} Bd6 {[%emt 0:00:07]} 5. Bd3 {[%emt 0:00:09]} Ne7 {[%emt 0:00:06]} 6. O-O {[%emt 0:00:40]} O-O {[%emt 0:00:10]} 7. Re1 {[%emt 0:01:47]} c6 {[%emt 0:00:44]} 8. Nbd2 {[%emt 0:02:29]} Bf5 {[%emt 0:00:43]} 9. Rxe7 {[%emt 0:08:11]} Bxd3 {[%emt 0:00:17]} 10. Rxb7 {[%emt 0:00:35]} Bb5 {[%emt 0:00:09]} 11. a4 {[%emt 0:00:38]} Qc8 {[%emt 0:00:17]} 12. Rxb8 {[%emt 0:00:31]} Qxb8 {[%emt 0:00:14]} 13. axb5 {[%emt 0:00:10]} Qxb5 {[%emt 0:00:13]} 14. Nf1 {[%emt 0:01:46]} Rfe8 {[%emt 0:01:09]} 15. Ne3 {[%emt 0:02:39]} Qb7 {[%emt 0:01:59]} 16. b3 {[%emt 0:03:33]} Qd7 {[%emt 0:04:00]} 17. Ba3 {[%emt 0:02:32]} Bf4 {[%emt 0:01:36]} 18. Qd3 {[%emt 0:02:44]} Bxe3 {[%emt 0:02:01]} 19. fxe3 {[%emt 0:00:32]} Qe6 {[%emt 0:02:31]} 20. Re1 {[%emt 0:01:15]} a5 {[%emt 0:01:41]} 21. Nd2 {[%emt 0:10:44]} a4 {[%emt 0:02:16]} 22. e4 {[%emt 0:12:25]} axb3 {[%emt 0:00:49]} 23. Qxb3 {[%emt 0:00:45]} dxe4 {[%emt 0:00:47]} 24. Rxe4 {[%emt 0:01:07]} Qxb3 {[%emt 0:00:11]} 25. Rxe8+ {[%emt 0:00:08]} Rxe8 {[%emt 0:00:10]} 26. Nxb3 {[%emt 0:00:22]} Re2 {[%emt 0:01:33]} 27. c3 {[%emt 0:01:34]} f6 {[%emt 0:01:01]} 28. Kf1 {[%emt 0:01:28]} Ra2 {[%emt 0:00:22]} 29. Bb4 {[%emt 0:00:47]} Ra6 {[%emt 0:00:33]} 30. Na5 {[%emt 0:01:30]} Kf7 {[%emt 0:00:42]} 31. Ke2 {[%emt 0:00:08]} Ke6 {[%emt 0:00:37]} 32. g4 {[%emt 0:03:39]} g6 {[%emt 0:01:12]} 33. Kd3 {[%emt 0:02:15]} f5 {[%emt 0:01:16]} 34. g5 {[%emt 0:03:40]} Kd7 {[%emt 0:01:57]} 35. c4 {[%emt 0:09:19]} Ke6 {[%emt 0:02:15]} 36. Nxc6 {[%emt 0:02:10]} Ra2 {[%emt 0:02:08]} 37. d5+ {[%emt 0:00:38]} Kd7 {[%emt 0:00:16]} 38. Ne5+ {[%emt 0:00:30]} Kc8 {[%emt 0:02:34]} 39. d6 {[%emt 0:02:15]} Ra1 {[%emt 0:00:57]} 40. c5 {[%emt 0:02:32]} Ra4 {[%emt 0:00:59]} 41. Kc4 {[%emt 0:01:58]} Ra1 {[%emt 0:02:14]} 42. Kb5 {[%emt 0:01:42]} Rb1 {[%emt 0:02:20]} 43. Kc6 {[%emt 0:01:28]} Rxb4 {[%emt 0:00:13]} 44. d7+ {[%emt 0:00:07]} Kd8 {[%emt 0:00:12]} 45. Nf7+ {[%emt 0:00:05]} Ke7 {[%emt 0:00:46]} 46. d8=Q+ {[%emt 0:00:13]} Kxf7 {[%emt 0:00:02]} 47. Qf6+ {[%emt 0:00:04]} Kg8 {[%emt 0:00:23]} 48. Qd8+ {[%emt 0:00:34]} Kg7 {[%emt 0:00:13]} 49. Qe7+ {[%emt 0:00:02]} Kg8 {[%emt 0:00:12]} 50. Kd5 {[%emt 0:01:11]} Rb1 {[%emt 0:00:29]} 51. c6 {[%emt 0:01:16]} Rd1+ {[%emt 0:00:51]} 52. Ke6 {[%emt 0:01:49]} Re1+ {[%emt 0:01:11]} 53. Kf6 {[%emt 0:00:05]} Rxe7 54. Kxe7 h6 {[%emt 0:01:13]} 55. c7 {[%emt 0:01:03]} hxg5 {[%emt 0:00:42]} 56. c8=Q+ {[%emt 0:00:04]} Kg7 {[%emt 0:00:02]} 57. Qc3+ {[%emt 0:00:23]} Kh7 {[%emt 0:00:10]} 58. Kf7 {[%emt 0:00:10]} 1-0

[Event "French-ch Youth U12 2022"]
[Site "Agen"]
[Date "2022.04.20"]
[Round "5.1"]
[White "Lefrancois, Jean"]
[Black "Contie, Lilio"]
[Result "1/2-1/2"]
[ECO "E26"]
[WhiteElo "1476"]
[BlackElo "1606"]
[Annotator "NA RC COMBH"]
[PlyCount "130"]
[EventDate "2022.04.17"]
[EventType "swiss"]
[EventCountry "FRA"]
[SourceTitle "playchess.com"]
[Source "ChessBase"]
[SourceQuality "1"]
[TimeControl "5400+30"]

1. d4 {[%emt 0:00:04]} Nf6 {[%emt 0:00:10]} 2. c4 {[%emt 0:00:14]} e6 {[%emt 0:00:10]} 3. Nc3 {[%emt 0:00:18]} Bb4 {[%emt 0:00:10]} 4. a3 {[%emt 0:01:01]} Bxc3+ {[%emt 0:00:15]} 5. bxc3 {[%emt 0:00:09]} c5 {[%emt 0:00:28]} 6. e3 {[%emt 0:00:33]} d5 {[%emt 0:01:52]} 7. Nf3 {[%emt 0:00:46]} Nc6 {[%emt 0:01:42]} 8. Bd3 {[%emt 0:00:57]} Qc7 {[%emt 0:03:46]} 9. O-O {[%emt 0:07:23]} dxc4 {[%emt 0:06:37]} 10. Bxc4 {[%emt 0:00:29]} e5 {[%emt 0:01:34]} 11. d5 {[%emt 0:05:30]} e4 {[%emt 0:09:53]} 12. Bb5 {[%emt 0:26:17]} exf3 {[%emt 0:04:11]} 13. dxc6 {[%emt 0:01:37]} bxc6 {[%emt 0:07:58]} 14. Qxf3 {[%emt 0:00:50]} Bb7 {[%emt 0:01:12]} 15. Bd3 {[%emt 0:01:19]} Rd8 {[%emt 0:02:59]} 16. e4 {[%emt 0:01:29]} O-O {[%emt 0:04:10]} 17. Bf4 {[%emt 0:01:49]} Qa5 {[%emt 0:01:55]} 18. Bc2 {[%emt 0:05:25]} c4 {[%emt 0:07:15]} 19. Rab1 {[%emt 0:03:44]} Bc8 {[%emt 0:03:06]} 20. Rb4 {[%emt 0:08:25]} Bg4 {[%emt 0:10:33]} 21. Qe3 {[%emt 0:03:09]} Qh5 {[%emt 0:07:21]} 22. f3 {[%emt 0:01:16]} Be6 {[%emt 0:01:08]} 23. Qxa7 {[%emt 0:03:39]} Ra8 {[%emt 0:01:41]} 24. Qe7 {[%emt 0:02:00]} Rfe8 {[%emt 0:03:30]} 25. Qd6 {[%emt 0:01:32]} Rxa3 {[%emt 0:02:35]} 26. Rb8 {[%emt 0:02:03]} Ra8 {[%emt 0:06:23]} 27. Rxa8 {[%emt 0:00:58]} Rxa8 {[%emt 0:00:06]} 28. Rb1 {[%emt 0:00:40]} Kh8 {[%emt 0:02:21]} 29. Qxc6 {[%emt 0:02:20]} Qa5 {[%emt 0:01:10]} 30. Bc7 Qa2 {[%emt 0:00:48]} 31. Qxa8+ {[%emt 0:08:24]} Qxa8 {[%emt 0:00:09]} 32. Rb8+ {[%emt 0:00:10]} Qxb8 {[%emt 0:00:08]} 33. Bxb8 {[%emt 0:00:07]} Nd7 {[%emt 0:00:32]} 34. Bd6 {[%emt 0:00:15]} Nb6 {[%emt 0:03:27]} 35. Bc7 {[%emt 0:00:43]} Nd7 {[%emt 0:00:49]} 36. Bd6 {[%emt 0:01:42]} Nb6 {[%emt 0:00:31]} 37. Kf2 {[%emt 0:00:45]} f5 {[%emt 0:02:34]} 38. Ke3 {[%emt 0:01:32]} fxe4 {[%emt 0:00:37]} 39. fxe4 {[%emt 0:00:51]} Bg4 {[%emt 0:00:44]} 40. h3 {[%emt 0:00:14]} Bh5 {[%emt 0:00:27]} 41. g4 {[%emt 0:00:18]} Bf7 {[%emt 0:00:31]} 42. Kd4 {[%emt 0:00:15]} Be6 {[%emt 0:00:25]} 43. Bc7 {[%emt 0:00:37]} Nd7 {[%emt 0:00:20]} 44. e5 {[%emt 0:00:32]} g6 {[%emt 0:01:13]} 45. Ba4 {[%emt 0:00:23]} h5 {[%emt 0:00:34]} 46. Bxd7 {[%emt 0:00:46]} Bxd7 {[%emt 0:00:06]} 47. gxh5 {[%emt 0:00:53]} gxh5 {[%emt 0:00:21]} 48. Kxc4 {[%emt 0:00:38]} Bxh3 {[%emt 0:00:49]} 49. Bd8 {[%emt 0:00:51]} Kg7 {[%emt 0:00:59]} 50. Kd5 {[%emt 0:00:14]} Kf7 {[%emt 0:00:17]} 51. Kd6 {[%emt 0:00:22]} Be6 {[%emt 0:00:20]} 52. Bh4 {[%emt 0:00:22]} Ba2 {[%emt 0:00:17]} 53. Kc5 {[%emt 0:00:42]} Ke6 {[%emt 0:00:15]} 54. Kd4 {[%emt 0:00:13]} Bb3 {[%emt 0:00:26]} 55. Ke4 {[%emt 0:00:18]} Ba2 {[%emt 0:00:13]} 56. Bf6 {[%emt 0:00:21]} Bb3 {[%emt 0:00:19]} 57. Kf4 {[%emt 0:00:10]} Bd5 {[%emt 0:01:04]} 58. Kg5 {[%emt 0:00:24]} Ba2 {[%emt 0:00:51]} 59. Kxh5 {[%emt 0:00:14]} Bc4 {[%emt 0:00:15]} 60. Kg4 {[%emt 0:00:18]} Ba2 {[%emt 0:00:26]} 61. Kf4 {[%emt 0:00:08]} Kd5 {[%emt 0:00:38]} 62. Kf5 {[%emt 0:00:36]} Bb1+ {[%emt 0:00:10]} 63. Kg5 {[%emt 0:00:24]} Ba2 {[%emt 0:00:29]} 64. Kg6 {[%emt 0:00:08]} Ke6 {[%emt 0:00:10]} 65. Kg7 {[%emt 0:00:33]} Kd5 1/2-1/2

[Event "French-ch Youth U12 2022"]
[Site "Agen"]
[Date "2022.04.20"]
[Round "5.2"]
[White "Motoyama, Wesley Winsen"]
[Black "Spinosi, Aurelien"]
[Result "1-0"]
[ECO "D02"]
[WhiteElo "1590"]
[BlackElo "1532"]
[Annotator "NA RC COMBH"]
[PlyCount "85"]
[EventDate "2022.04.17"]
[EventType "swiss"]
[EventCountry "FRA"]
[SourceTitle "playchess.com"]
[Source "ChessBase"]
[SourceQuality "1"]
[TimeControl "5400+30"]

1. d4 {[%emt 0:00:05]} d5 {[%emt 0:01:02]} 2. Nf3 {[%emt 0:00:29]} Nf6 {[%emt 0:01:16]} 3. Bf4 {[%emt 0:00:24]} e6 {[%emt 0:03:33]} 4. e3 {[%emt 0:00:59]} Be7 {[%emt 0:00:35]} 5. Bd3 {[%emt 0:03:11]} Nbd7 {[%emt 0:02:56]} 6. Nbd2 {[%emt 0:00:30]} a6 {[%emt 0:03:03]} 7. a4 {[%emt 0:04:52]} O-O {[%emt 0:05:20]} 8. Ne5 {[%emt 0:00:40]} c5 {[%emt 0:02:32]} 9. c3 {[%emt 0:04:19]} h6 {[%emt 0:16:47]} 10. Qf3 {[%emt 0:13:34]} Nxe5 {[%emt 0:06:53]} 11. dxe5 {[%emt 0:02:09]} Nd7 {[%emt 0:03:35]} 12. h4 {[%emt 0:11:12]} f6 {[%emt 0:12:49]} 13. exf6 {[%emt 0:17:20]} Bxf6 {[%emt 0:06:25]} 14. Qg3 {[%emt 0:03:38]} e5 {[%emt 0:07:10]} 15. Bxh6 {[%emt 0:01:30]} e4 {[%emt 0:01:14]} 16. Be2 {[%emt 0:03:01]} Be5 {[%emt 0:08:31]} 17. Bf4 {[%emt 0:01:30]} Bxf4 {[%emt 0:00:58]} 18. exf4 {[%emt 0:00:13]} Qf6 {[%emt 0:01:00]} 19. Qg5 {[%emt 0:02:15]} Qxg5 {[%emt 0:02:37]} 20. fxg5 {[%emt 0:00:21]} Ne5 {[%emt 0:01:50]} 21. Nb3 {[%emt 0:08:06]} c4 {[%emt 0:05:37]} 22. Nd4 {[%emt 0:00:14]} Nd3+ {[%emt 0:00:06]} 23. Bxd3 {[%emt 0:00:23]} exd3 {[%emt 0:00:31]} 24. f3 {[%emt 0:01:02]} Bd7 {[%emt 0:00:42]} 25. Kd2 {[%emt 0:00:37]} Rae8 {[%emt 0:00:34]} 26. a5 {[%emt 0:01:12]} Re5 {[%emt 0:01:48]} 27. Rhf1 {[%emt 0:03:57]} Rfe8 {[%emt 0:00:53]} 28. g4 {[%emt 0:02:52]} g6 {[%emt 0:01:25]} 29. Rg1 {[%emt 0:00:39]} Kg7 {[%emt 0:01:20]} 30. Rg2 {[%emt 0:00:47]} Rf8 {[%emt 0:01:57]} 31. Rf1 {[%emt 0:00:19]} Rfe8 {[%emt 0:00:27]} 32. Rh1 {[%emt 0:03:08]} Rf8 {[%emt 0:00:29]} 33. Rgg1 {[%emt 0:01:30]} Rfe8 {[%emt 0:00:31]} 34. f4 {[%emt 0:01:39]} Re4 35. f5 {[%emt 0:01:13]} Kf7 {[%emt 0:01:02]} 36. h5 {[%emt 0:00:38]} gxf5 {[%emt 0:00:20]} 37. gxf5 {[%emt 0:00:09]} Ba4 {[%emt 0:00:38]} 38. h6 {[%emt 0:00:21]} Re2+ {[%emt 0:00:32]} 39. Nxe2 {[%emt 0:00:38]} Rxe2+ {[%emt 0:00:01]} 40. Kc1 {[%emt 0:00:22]} d2+ {[%emt 0:00:54]} 41. Kb1 {[%emt 0:00:10]} Kg8 {[%emt 0:00:34]} 42. g6 {[%emt 0:00:56]} d1=Q+ {[%emt 0:00:32]} 43. Rxd1 {[%emt 0:00:06]} 1-0

[Event "French-ch Youth U12 2022"]
[Site "Agen"]
[Date "2022.04.20"]
[Round "5.3"]
[White "Boulos, Paul"]
[Black "Plaidit, Hugo"]
[Result "1/2-1/2"]
[ECO "B13"]
[WhiteElo "1691"]
[BlackElo "1701"]
[Annotator "NA RC COMBH"]
[PlyCount "59"]
[EventDate "2022.04.17"]
[EventType "swiss"]
[EventCountry "FRA"]
[SourceTitle "playchess.com"]
[Source "ChessBase"]
[SourceQuality "1"]
[TimeControl "5400+30"]

1. e4 {[%emt 0:00:04]} c6 {[%emt 0:00:25]} 2. d4 {[%emt 0:00:07]} d5 {[%emt 0:00:24]} 3. exd5 {[%emt 0:00:07]} cxd5 {[%emt 0:00:11]} 4. Bd3 {[%emt 0:00:04]} Nc6 {[%emt 0:00:31]} 5. c3 {[%emt 0:00:05]} g6 {[%emt 0:00:27]} 6. Bf4 {[%emt 0:00:44]} Bf5 {[%emt 0:00:27]} 7. Bxf5 {[%emt 0:00:57]} gxf5 {[%emt 0:00:02]} 8. Nd2 {[%emt 0:00:20]} e6 {[%emt 0:00:27]} 9. Ngf3 {[%emt 0:00:36]} Bd6 {[%emt 0:01:20]} 10. Bxd6 {[%emt 0:08:34]} Qxd6 {[%emt 0:00:23]} 11. Qe2 {[%emt 0:00:27]} Nge7 {[%emt 0:04:59]} 12. h3 {[%emt 0:09:07]} Ng6 {[%emt 0:03:59]} 13. g3 {[%emt 0:01:13]} Rc8 {[%emt 0:05:39]} 14. Nb3 {[%emt 0:05:28]} h5 {[%emt 0:10:18]} 15. h4 {[%emt 0:13:10]} f4 {[%emt 0:04:34]} 16. Rg1 {[%emt 0:01:22]} Nce7 {[%emt 0:07:37]} 17. O-O-O {[%emt 0:14:52]} Nf5 {[%emt 0:03:58]} 18. Ng5 {[%emt 0:05:02]} fxg3 {[%emt 0:09:12]} 19. fxg3 {[%emt 0:01:46]} Nxg3 {[%emt 0:03:59]} 20. Qh2 {[%emt 0:09:35]} Ne4 {[%emt 0:07:43]} 21. Qxd6 {[%emt 0:00:15]} Nxd6 {[%emt 0:00:14]} 22. Nxe6 {[%emt 0:00:46]} fxe6 {[%emt 0:00:17]} 23. Rxg6 {[%emt 0:00:15]} Kf7 {[%emt 0:00:26]} 24. Rg2 {[%emt 0:09:08]} Rhg8 {[%emt 0:10:54]} 25. Rf2+ {[%emt 0:02:49]} Ke7 {[%emt 0:01:44]} 26. Rdf1 {[%emt 0:04:56]} Rcf8 {[%emt 0:00:34]} 27. Nc5 {[%emt 0:01:54]} Rxf2 {[%emt 0:01:23]} 28. Rxf2 {[%emt 0:00:14]} b6 {[%emt 0:01:34]} 29. Nd3 {[%emt 0:01:04]} Ne4 {[%emt 0:04:28]} 30. Rf4 1/2-1/2

[Event "French-ch Youth U12 2022"]
[Site "Agen"]
[Date "2022.04.20"]
[Round "5.4"]
[White "Laignel, Quentin"]
[Black "Rodriguez, Augustin"]
[Result "1-0"]
[ECO "A46"]
[WhiteElo "1600"]
[BlackElo "1662"]
[Annotator "NA RC COMBH"]
[PlyCount "153"]
[EventDate "2022.04.17"]
[EventType "swiss"]
[EventCountry "FRA"]
[SourceTitle "playchess.com"]
[Source "ChessBase"]
[SourceQuality "1"]
[TimeControl "5400+30"]

1. d4 {[%emt 0:00:08]} Nf6 {[%emt 0:00:13]} 2. Nf3 {[%emt 0:00:46]} e6 {[%emt 0:00:27]} 3. Bf4 {[%emt 0:00:42]} d5 {[%emt 0:00:38]} 4. e3 {[%emt 0:00:34]} c5 {[%emt 0:02:34]} 5. c3 {[%emt 0:01:34]} Nc6 {[%emt 0:13:12]} 6. Nbd2 {[%emt 0:03:03]} Nh5 {[%emt 0:06:09]} 7. Bg5 {[%emt 0:05:05]} f6 {[%emt 0:01:29]} 8. Bh4 {[%emt 0:04:48]} g6 {[%emt 0:00:45]} 9. Be2 {[%emt 0:12:47]} Ng7 {[%emt 0:00:59]} 10. Nb3 {[%emt 0:01:02]} cxd4 {[%emt 0:12:59]} 11. exd4 {[%emt 0:01:29]} Be7 {[%emt 0:15:50]} 12. Bg3 {[%emt 0:08:36]} Bd7 {[%emt 0:03:16]} 13. O-O Nh5 14. Re1 {[%emt 0:06:58]} Nxg3 {[%emt 0:00:53]} 15. hxg3 {[%emt 0:00:25]} O-O {[%emt 0:03:37]} 16. Bf1 {[%emt 0:06:51]} Qe8 {[%emt 0:09:28]} 17. Nc1 {[%emt 0:08:12]} Qf7 {[%emt 0:01:08]} 18. Nd3 {[%emt 0:00:33]} Rfe8 {[%emt 0:01:31]} 19. Qb3 {[%emt 0:02:37]} b6 {[%emt 0:00:32]} 20. Rad1 {[%emt 0:03:37]} Rad8 {[%emt 0:01:35]} 21. a3 {[%emt 0:00:18]} Na5 {[%emt 0:02:23]} 22. Qa2 {[%emt 0:01:09]} Bf8 {[%emt 0:01:12]} 23. Nb4 {[%emt 0:01:20]} Ba4 {[%emt 0:01:45]} 24. Rd2 {[%emt 0:00:08]} Bb3 {[%emt 0:09:59]} 25. Qb1 {[%emt 0:00:31]} Nc4 {[%emt 0:01:17]} 26. Rde2 {[%emt 0:02:05]} Nd6 {[%emt 0:00:36]} 27. Nd3 {[%emt 0:13:40]} Re7 {[%emt 0:02:26]} 28. g4 {[%emt 0:00:22]} Rde8 {[%emt 0:03:19]} 29. g5 {[%emt 0:00:17]} fxg5 {[%emt 0:01:43]} 30. Nxg5 {[%emt 0:00:57]} Qf6 {[%emt 0:00:01]} 31. Nf3 {[%emt 0:00:20]} Nf7 {[%emt 0:00:43]} 32. Nde5 {[%emt 0:00:25]} Bg7 {[%emt 0:00:53]} 33. Nxf7 Qxf7 {[%emt 0:00:40]} 34. Ne5 {[%emt 0:01:15]} Bxe5 {[%emt 0:01:19]} 35. Rxe5 {[%emt 0:00:07]} Rf8 {[%emt 0:00:47]} 36. f3 {[%emt 0:00:11]} Ba4 {[%emt 0:00:36]} 37. Qc1 {[%emt 0:01:33]} Bd7 {[%emt 0:00:16]} 38. Qe3 {[%emt 0:00:08]} Rfe8 {[%emt 0:00:10]} 39. f4 {[%emt 0:00:40]} Qf6 {[%emt 0:01:15]} 40. g3 {[%emt 0:00:32]} Kg7 {[%emt 0:00:38]} 41. Bg2 {[%emt 0:00:20]} Bc6 {[%emt 0:00:37]} 42. Bh3 {[%emt 0:00:26]} Bd7 {[%emt 0:00:11]} 43. b3 {[%emt 0:00:38]} b5 {[%emt 0:00:21]} 44. Bf1 {[%emt 0:00:21]} Bc6 {[%emt 0:00:57]} 45. c4 {[%emt 0:01:00]} bxc4 {[%emt 0:00:57]} 46. bxc4 {[%emt 0:00:07]} dxc4 {[%emt 0:00:34]} 47. Bxc4 {[%emt 0:00:10]} Kf7 {[%emt 0:00:32]} 48. Rf1 {[%emt 0:03:29]} Kg7 {[%emt 0:00:33]} 49. Re1 {[%emt 0:00:49]} Kf7 {[%emt 0:00:03]} 50. Re2 {[%emt 0:00:30]} Bb7 {[%emt 0:00:52]} 51. Qf2 {[%emt 0:01:21]} h5 {[%emt 0:00:20]} 52. f5 {[%emt 0:00:39]} Kg7 {[%emt 0:00:46]} 53. Bxe6 {[%emt 0:01:33]} gxf5 {[%emt 0:00:25]} 54. Rxf5 {[%emt 0:01:31]} Qg6 {[%emt 0:00:33]} 55. Ree5 {[%emt 0:01:17]} Rxe6 {[%emt 0:00:30]} 56. Rg5 {[%emt 0:00:07]} Rxe5 {[%emt 0:00:32]} 57. Rxg6+ {[%emt 0:00:11]} Kxg6 {[%emt 0:00:01]} 58. dxe5 {[%emt 0:00:10]} Rxe5 {[%emt 0:00:30]} 59. Qxa7 {[%emt 0:00:41]} Bd5 {[%emt 0:00:14]} 60. Qd4 {[%emt 0:01:50]} Rf5 {[%emt 0:00:28]} 61. a4 {[%emt 0:00:16]} Bc6 {[%emt 0:00:29]} 62. Qd6+ {[%emt 0:00:14]} Rf6 {[%emt 0:00:02]} 63. Qd3+ {[%emt 0:00:10]} Kg5 {[%emt 0:00:51]} 64. Qc4 {[%emt 0:01:18]} Bf3 {[%emt 0:01:27]} 65. a5 {[%emt 0:00:25]} Kh6 {[%emt 0:00:17]} 66. a6 {[%emt 0:00:28]} Kg7 {[%emt 0:00:34]} 67. a7 {[%emt 0:00:11]} Rf8 {[%emt 0:00:22]} 68. Kh2 {[%emt 0:00:38]} Ba8 {[%emt 0:00:42]} 69. Qc5 {[%emt 0:00:50]} Re8 {[%emt 0:00:35]} 70. Qg5+ {[%emt 0:00:20]} Kf8 {[%emt 0:00:30]} 71. Qxh5 {[%emt 0:00:16]} Rd8 {[%emt 0:00:30]} 72. Qh6+ {[%emt 0:00:23]} Kf7 {[%emt 0:00:29]} 73. Qf4+ {[%emt 0:00:13]} Kg6 {[%emt 0:00:23]} 74. g4 {[%emt 0:00:25]} Re8 {[%emt 0:00:36]} 75. g5 {[%emt 0:00:31]} Rh8+ {[%emt 0:00:32]} 76. Kg3 {[%emt 0:00:08]} Rg8 {[%emt 0:00:22]} 77. Qf6+ {[%emt 0:00:17]} 1-0

[Event "French-ch Youth U12 2022"]
[Site "Agen"]
[Date "2022.04.20"]
[Round "5.5"]
[White "Mence, Eline"]
[Black "Castagnerol, Cerise"]
[Result "1/2-1/2"]
[ECO "D00"]
[WhiteElo "1499"]
[BlackElo "1312"]
[Annotator "NA RC COMBH"]
[PlyCount "92"]
[EventDate "2022.04.17"]
[EventType "swiss"]
[EventCountry "FRA"]
[SourceTitle "playchess.com"]
[Source "ChessBase"]
[SourceQuality "1"]
[TimeControl "5400+30"]

1. d4 {[%emt 0:00:03]} d5 {[%emt 0:00:08]} 2. Bf4 {[%emt 0:00:11]} Nf6 {[%emt 0:00:28]} 3. e3 {[%emt 0:00:26]} Bg4 {[%emt 0:00:15]} 4. Nf3 {[%emt 0:01:46]} e6 {[%emt 0:01:01]} 5. Nbd2 {[%emt 0:02:39]} Bd6 {[%emt 0:01:30]} 6. Bxd6 {[%emt 0:04:58]} cxd6 {[%emt 0:00:20]} 7. c4 {[%emt 0:06:03]} dxc4 {[%emt 0:02:52]} 8. Bxc4 {[%emt 0:01:32]} d5 {[%emt 0:03:52]} 9. Bb5+ {[%emt 0:02:52]} Nbd7 {[%emt 0:03:34]} 10. Qa4 {[%emt 0:03:26]} O-O {[%emt 0:01:29]} 11. O-O {[%emt 0:01:12]} a6 {[%emt 0:05:34]} 12. Bxd7 {[%emt 0:03:01]} Qxd7 {[%emt 0:05:50]} 13. Qxd7 {[%emt 0:00:22]} Nxd7 {[%emt 0:00:06]} 14. Ne5 {[%emt 0:00:20]} Nxe5 {[%emt 0:00:47]} 15. dxe5 {[%emt 0:00:11]} Rac8 {[%emt 0:02:41]} 16. Rac1 {[%emt 0:01:11]} Be2 {[%emt 0:14:22]} 17. Rfe1 {[%emt 0:00:57]} Bd3 {[%emt 0:02:57]} 18. Nf3 {[%emt 0:03:22]} Bb5 {[%emt 0:09:06]} 19. Nd4 {[%emt 0:01:34]} Bc6 {[%emt 0:00:12]} 20. Rc5 {[%emt 0:16:22]} Bd7 {[%emt 0:02:11]} 21. Rec1 {[%emt 0:05:00]} Rxc5 {[%emt 0:00:21]} 22. Rxc5 {[%emt 0:00:11]} Rc8 {[%emt 0:00:10]} 23. Rxc8+ {[%emt 0:01:01]} Bxc8 {[%emt 0:00:05]} 24. Kf1 {[%emt 0:02:46]} Kf8 {[%emt 0:00:08]} 25. Ke2 {[%emt 0:00:19]} Ke7 {[%emt 0:00:44]} 26. Kd3 {[%emt 0:01:45]} Kd7 {[%emt 0:02:12]} 27. a4 {[%emt 0:11:30]} Kc7 {[%emt 0:03:31]} 28. b4 {[%emt 0:02:39]} Bd7 {[%emt 0:00:42]} 29. a5 {[%emt 0:00:17]} f6 {[%emt 0:00:37]} 30. f4 {[%emt 0:00:57]} Kd8 {[%emt 0:01:43]} 31. e4 {[%emt 0:06:25]} dxe4+ {[%emt 0:10:03]} 32. Kxe4 {[%emt 0:00:19]} Bc6+ {[%emt 0:00:23]} 33. Nxc6+ {[%emt 0:01:19]} bxc6 {[%emt 0:00:05]} 34. Kd4 {[%emt 0:00:29]} Kd7 {[%emt 0:00:55]} 35. Kc5 {[%emt 0:17:09]} Kc7 {[%emt 0:00:21]} 36. h4 {[%emt 0:00:45]} fxe5 {[%emt 0:06:46]} 37. fxe5 {[%emt 0:00:24]} g6 {[%emt 0:02:13]} 38. g3 {[%emt 0:00:48]} h5 {[%emt 0:02:03]} 39. Kd4 {[%emt 0:01:25]} Kd7 {[%emt 0:02:19]} 40. Ke4 {[%emt 0:00:33]} Ke7 {[%emt 0:00:30]} 41. Kf4 {[%emt 0:00:20]} Kf7 {[%emt 0:02:47]} 42. g4 {[%emt 0:00:22]} hxg4 {[%emt 0:00:59]} 43. Kxg4 {[%emt 0:00:05]} Kf8 {[%emt 0:00:56]} 44. Kf4 {[%emt 0:01:53]} Kf7 {[%emt 0:00:18]} 45. Kf3 {[%emt 0:00:37]} Kf8 {[%emt 0:01:06]} 46. Kg4 {[%emt 0:00:43]} Kg8 1/2-1/2